bitfinex-derivatives/quotes_BTCF0:USTF0_20250212
["timestamp","ask_amount","ask_price","bid_price","bid_amount"]
[1739379263071,0.3608,96457.0,96440.0,0.00015552]
[1739379263275,0.3608,96446.0,96440.0,0.00015552]
[1739379263477,0.3608,96446.0,96423.0,0.2074287]
[1739379263680,0.3608,96435.0,96420.0,0.3608]
[1739379263980,0.3608,96457.0,96428.0,0.3608]
[1739379264281,0.01487167,96473.0,96448.0,0.3608]
[1739379264476,0.01487167,96473.0,96465.0,0.2073376]
[1739379264678,0.00015552,96470.0,96469.0,0.2073292]
[1739379265981,0.00015552,96470.0,96469.0,0.2093292]
[1739379266781,0.3608,96487.0,96469.0,0.002]
[1739379266987,0.2073169,96476.0,96469.0,0.002]
[1739379267282,0.2073196,96475.0,96468.0,0.1452]
[1739379267481,0.09132,96474.0,96468.0,0.0358]
[1739379267675,0.09132,96474.0,96459.0,0.2073505]
[1739379267877,0.20703809,96475.0,96459.0,0.2073505]
[1739379268184,0.3608,96471.0,96469.0,0.001]
[1739379268480,0.0912,96470.0,96469.0,0.001]
[1739379268675,0.0912,96470.0,96457.0,0.00015552]
[1739379268874,0.00015438,96476.0,96470.0,0.2073288]
[1739379269075,0.00015438,96476.0,96475.0,0.568118]
[1739379269486,0.101,96500.0,96478.0,0.2073096]
[1739379269487,0.3608,96495.0,96478.0,0.2073096]
[1739379269678,0.101,96500.0,96483.0,0.2073007]
[1739379269875,0.28679018,96500.0,96475.0,0.3608]
[1739379270075,0.28679018,96500.0,96483.0,0.3608]
[1739379270280,0.3608,96497.0,96483.0,0.5681002]
[1739379270483,0.101,96500.0,96483.0,0.3608]
[1739379270672,0.101,96500.0,96489.0,0.2072862]
[1739379270877,0.2072825,96492.0,96480.0,0.00015552]
[1739379271378,0.3608,96485.0,96480.0,0.00015552]
[1739379271775,0.3608,96486.0,96480.0,0.00015552]
[1739379271981,0.2072975,96485.0,96480.0,0.00015552]
[1739379272179,0.2072992,96484.0,96480.0,0.00015552]
[1739379272578,0.2072992,96484.0,96483.0,0.001]
[1739379272780,0.2769838,96491.0,96483.0,0.001]
[1739379272976,0.002,96485.0,96483.0,0.001]
[1739379273181,0.003,96485.0,96480.0,0.00215552]
[1739379273379,0.2073051,96481.0,96480.0,0.00215552]
[1739379273596,0.3638,96485.0,96480.0,0.00215552]
[1739379273776,0.001,96484.0,96483.0,0.001]
[1739379273981,0.09148,96484.0,96483.0,0.001]
[1739379274175,0.001,96484.0,96483.0,0.001]
[1739379274383,0.09044,96484.0,96482.0,0.2073015]
[1739379274581,0.0697,96491.0,96480.0,0.00015552]
[1739379274788,0.0697,96491.0,96486.0,0.2072941]
[1739379274980,0.0697,96491.0,96486.0,0.5680941]
[1739379275183,0.76672,96518.0,96486.0,0.3608]
[1739379275387,0.1431,96508.0,96486.0,0.3608]
[1739379275580,0.0902,96499.0,96486.0,0.3608]
[1739379275980,0.2072812,96493.0,96486.0,0.3608]
[1739379276184,0.46436001,96500.0,96486.0,0.3608]
[1739379276383,0.09016,96499.0,96486.0,0.3608]
[1739379276682,0.09016,96498.0,96486.0,0.3608]
[1739379276884,0.09016,96498.0,96490.0,0.2072851]
[1739379277186,0.001,96493.0,96490.0,0.2072851]
[1739379277378,0.001,96493.0,96491.0,0.2072833]
[1739379277578,0.001,96493.0,96486.0,0.3608]
[1739379277983,0.2072922,96487.0,96486.0,0.3608]
[1739379278488,0.001,96493.0,96486.0,0.3608]
[1739379278690,0.001,96493.0,96480.0,0.00015552]
[1739379278691,0.2072871,96490.0,96480.0,0.00015552]
[1739379279087,0.3608,96483.0,96468.0,0.3608]
[1739379279292,0.3608,96480.0,96468.0,0.3608]
[1739379279484,0.3558,96480.0,96468.0,0.3608]
[1739379280287,0.3558,96480.0,96469.0,0.01620613]
[1739379280481,0.3558,96480.0,96470.0,0.01620613]
[1739379280685,0.3568,96480.0,96471.0,0.01620613]
[1739379280881,0.5641085,96480.0,96472.0,0.01620613]
[1739379281086,0.5641085,96480.0,96468.0,0.3608]
[1739379281294,0.5641085,96480.0,96469.0,0.01620623]
[1739379281596,0.5641085,96480.0,96470.0,0.01620623]
[1739379281785,0.5641085,96480.0,96471.0,0.01620623]
[1739379281985,0.5641085,96480.0,96472.0,0.01620623]
[1739379282180,0.3568,96480.0,96473.0,0.01620623]
[1739379282389,0.3568,96480.0,96468.0,0.3608]
[1739379282390,0.005,96480.0,96476.0,0.3608]
[1739379282692,0.08984,96479.0,96478.0,0.207311]
[1739379282996,0.005,96480.0,96478.0,0.2494425]
[1739379282997,0.006,96480.0,96478.0,0.2494425]
[1739379283192,0.006,96480.0,96479.0,0.04213092]
[1739379283587,0.006,96480.0,96479.0,0.05833528]
[1739379284089,0.008,96480.0,96479.0,0.05833528]
[1739379284289,0.008,96480.0,96479.0,0.03240856]
[1739379284486,0.008,96480.0,96479.0,0.05833584]
[1739379284687,0.002,96480.0,96479.0,0.03240856]
[1739379284993,0.003,96480.0,96479.0,0.04040856]
[1739379285383,0.001,96480.0,96479.0,0.04040856]
[1739379285591,0.003,96480.0,96479.0,0.03240856]
[1739379286000,0.073,96480.0,96479.0,0.0162042]
[1739379286296,0.2073094,96479.0,96478.0,0.35181245]
[1739379287090,0.071,96480.0,96478.0,0.35181245]
[1739379287291,0.073,96480.0,96478.0,0.35181245]
[1739379287989,0.005,96479.0,96478.0,0.001]
[1739379288197,0.0944,96479.0,96478.0,0.001]
[1739379288699,0.0894,96479.0,96478.0,0.001]
[1739379288900,0.002,96479.0,96478.0,0.3618]
[1739379289099,0.09124,96479.0,96478.0,0.3618]
[1739379289291,0.08924,96479.0,96478.0,0.3618]
[1739379289493,0.005,96480.0,96478.0,0.3618]
[1739379289692,0.08912,96479.0,96478.0,0.569111]
[1739379289991,0.005,96480.0,96479.0,0.01620421]
[1739379290701,0.00015552,96484.0,96479.0,0.08590421]
[1739379291092,0.00015552,96484.0,96480.0,0.01620421]
[1739379291388,0.00015552,96484.0,96482.0,0.2073015]
[1739379291594,2e-08,96484.0,96483.0,0.01620421]
[1739379291893,0.101,96500.0,96499.0,0.2072664]
[1739379292096,0.101,96500.0,96499.0,0.5680664]
[1739379292997,0.101,96500.0,96499.0,0.58427061]
[1739379293197,0.2071681,96545.0,96510.0,0.01]
[1739379293395,0.2757681,96545.0,96530.0,0.18579018]
[1739379293615,0.2757681,96545.0,96528.0,0.2072036]
[1739379293811,0.3608,96540.0,96525.0,0.3608]
[1739379294009,0.2071854,96537.0,96525.0,0.3608]
[1739379294223,0.54659018,96540.0,96525.0,0.3608]
[1739379294517,0.33878048,96540.0,96525.0,0.3608]
[1739379294818,0.1529903,96540.0,96525.0,0.3608]
[1739379295018,0.0686,96545.0,96525.0,0.3608]
[1739379295214,0.08908,96544.0,96525.0,0.3608]
[1739379295419,0.18579018,96540.0,96525.0,0.3608]
[1739379295718,0.0001475,96537.0,96525.0,0.3618]
[1739379295908,0.2071901,96535.0,96525.0,0.3618]
[1739379296113,0.2071901,96535.0,96525.0,0.001]
[1739379296312,0.0001475,96537.0,96531.0,0.3608]
[1739379296710,0.0001475,96537.0,96533.0,0.207192]
[1739379297121,0.0001475,96537.0,96531.0,0.3608]
[1739379298111,0.2071917,96534.0,96531.0,0.3608]
[1739379298324,0.2071917,96534.0,96523.0,0.3608]
[1739379298523,0.0011475,96537.0,96527.0,0.3608]
[1739379298819,0.0001475,96537.0,96535.0,0.3608]
[1739379300624,0.0001475,96537.0,96536.0,0.207187]
[1739379301528,0.0001475,96537.0,96535.0,0.5679889]
[1739379301717,0.0001475,96537.0,96535.0,0.5689889]
[1739379302026,0.0001475,96537.0,96535.0,0.3618]
[1739379302320,0.0001475,96537.0,96536.0,0.5689871]
[1739379302920,0.0001475,96537.0,96536.0,0.5679871]
[1739379303122,0.0001475,96537.0,96536.0,1.2287871]
[1739379303529,0.0001475,96537.0,96536.0,0.9287871]
[1739379303825,0.0001475,96537.0,96536.0,1.2287871]
[1739379304227,0.01426048,96578.0,96577.0,0.2070973]
[1739379304522,0.09299578,96608.0,96607.0,0.2070348]
[1739379304728,0.5101862,96638.0,96607.0,0.7216]
[1739379305022,0.5101862,96638.0,96613.0,0.18579018]
[1739379305023,0.3608,96634.0,96613.0,0.18579018]
[1739379305221,0.3608,96624.0,96613.0,0.18579018]
[1739379305427,0.32501267,96614.0,96613.0,0.18579018]
[1739379305625,0.32501267,96614.0,96605.0,0.00015532]
[1739379305926,0.32501267,96606.0,96605.0,0.00015532]
[1739379306127,0.32501267,96606.0,96580.0,0.18579018]
[1739379306314,0.32501267,96585.0,96568.0,0.3608]
[1739379306517,0.3608,96580.0,96570.0,0.18579018]
[1739379306725,0.21805309,96623.0,96574.0,0.3608]
[1739379306726,0.2070629,96594.0,96574.0,0.3608]
[1739379306923,0.2070413,96604.0,96582.0,0.3608]
[1739379307113,0.3608,96619.0,96602.0,0.3608]
[1739379307318,0.21805309,96623.0,96618.0,0.3608]
[1739379307628,0.00015465,96620.0,96618.0,0.3608]
[1739379307821,0.00015465,96620.0,96618.0,0.2070108]
[1739379308126,0.00015465,96620.0,96619.0,0.7216]
[1739379308323,0.3608,96645.0,96619.0,0.7216]
[1739379308622,0.3608,96645.0,96627.0,0.3608]
[1739379308929,0.09244,96644.0,96638.0,0.3608]
[1739379309428,0.09368,96643.0,96638.0,0.3608]
[1739379309624,0.09368,96643.0,96620.0,0.49289971]
[1739379309625,0.0663,96663.0,96642.0,0.3608]
[1739379309929,0.32501267,96654.0,96642.0,0.3608]
[1739379310222,0.0663,96663.0,96642.0,0.3608]
[1739379310421,0.32501267,96650.0,96642.0,0.3608]
[1739379310627,0.32501267,96643.0,96642.0,0.3608]
[1739379311018,0.00056001,96660.0,96642.0,1.0216]
[1739379311224,0.45484,96671.0,96659.0,0.3608]
[1739379311521,0.59220981,96700.0,96659.0,0.3608]
[1739379311522,0.00123295,96670.0,96669.0,0.3608]
[1739379311721,0.3608,96714.0,96669.0,0.3608]
[1739379311722,0.23628774,96711.0,96669.0,0.4008]
[1739379311921,0.03307,96737.0,96710.0,0.3608]
[1739379312119,0.3608,96759.0,96736.0,0.3608]
[1739379312322,0.3608,96759.0,96748.0,0.2067326]
[1739379312522,0.3608,96769.0,96756.0,0.3608]
[1739379312719,0.4991601,96823.0,96765.0,0.3608]
[1739379312922,0.01,96852.0,96765.0,0.3608]
[1739379312923,0.3358798,96802.0,96766.0,0.01552]
[1739379313115,0.5673298,96844.0,96803.0,0.2066153]
[1739379313320,0.2065298,96844.0,96832.0,0.3608]
[1739379313626,0.39694885,96846.0,96824.0,0.3608]
[1739379313815,5e-08,96846.0,96845.0,0.216526]
[1739379314214,5e-08,96846.0,96845.0,0.31979444]
[1739379314635,5e-08,96846.0,96845.0,0.61979444]
[1739379314821,5e-08,96846.0,96844.0,0.3608]
[1739379315017,5e-08,96846.0,96836.0,0.00015496]
[1739379315018,1.73827643,96845.0,96836.0,0.00015496]
[1739379315221,1.37747643,96843.0,96836.0,0.00015496]
[1739379315416,0.28537366,96846.0,96836.0,0.00015496]
[1739379315417,0.28537366,96846.0,96837.0,0.1053231]
[1739379315615,0.28537366,96846.0,96845.0,0.003]
[1739379315816,1.66285009,96846.0,96836.0,0.00015496]
[1739379316117,1.37147643,96814.0,96767.0,0.2066912]
[1739379316318,0.3608,96811.0,96779.0,0.3608]
[1739379316521,0.3608,96811.0,96790.0,0.49201481]
[1739379316723,0.3608,96830.0,96821.0,0.30287732]
[1739379316921,0.3608,96822.0,96821.0,0.30287732]
[1739379317319,0.00015377,96835.0,96821.0,0.30287732]
[1739379317320,0.00015377,96835.0,96821.0,0.66839732]
[1739379317526,0.3608,96834.0,96821.0,0.38268929]
[1739379317736,0.3608,96834.0,96821.0,0.30287732]
[1739379317932,7.382e-05,96833.0,96821.0,0.30287732]
[1739379318331,0.3608,96825.0,96821.0,0.30287732]
[1739379318726,7.382e-05,96824.0,96821.0,0.30287732]
[1739379318927,0.3608,96825.0,96821.0,0.30887732]
[1739379319127,0.001,96833.0,96821.0,0.006]
[1739379319524,0.3608,96834.0,96821.0,0.006]
[1739379319525,7.382e-05,96832.0,96821.0,0.001]
[1739379319724,0.3608,96834.0,96821.0,0.001]
[1739379319926,0.3608,96822.0,96821.0,0.001]
[1739379320231,1.73235025,96822.0,96821.0,0.001]
[1739379320419,1.73235025,96822.0,96777.0,0.36405147]
[1739379320420,1.37147643,96817.0,96777.0,0.36405147]
[1739379320625,1.73227643,96798.0,96777.0,0.36465147]
[1739379320827,1.73227643,96798.0,96788.0,0.28743998]
[1739379320828,0.3608,96798.0,96788.0,0.28743998]
[1739379321026,0.3608,96814.0,96789.0,0.00206635]
[1739379321331,0.3608,96814.0,96812.0,0.2065954]
[1739379321633,0.3608,96814.0,96792.0,0.00015496]
[1739379321634,0.71413138,96814.0,96792.0,0.00015496]
[1739379321931,0.7216,96799.0,96792.0,0.00015496]
[1739379322121,0.3608,96803.0,96792.0,0.00015496]
[1739379322321,0.3608,96793.0,96792.0,0.00015496]
[1739379322529,1.18544222,96800.0,96792.0,0.00015496]
[1739379322732,0.3608,96793.0,96792.0,0.20679406]
[1739379323036,0.00056001,96800.0,96795.0,0.2066306]
[1739379323326,0.3608,96803.0,96801.0,0.2066184]
[1739379323529,0.14374184,96803.0,96801.0,0.2066184]
[1739379323733,0.3608,96805.0,96801.0,0.2066184]
[1739379324035,1.18544222,96802.0,96801.0,0.2066184]
[1739379324234,1.18544222,96802.0,96792.0,0.00115496]
[1739379324423,0.88573885,96794.0,96792.0,0.00115496]
[1739379324628,0.88573885,96793.0,96792.0,0.00315496]
[1739379324836,0.3608,96843.0,96792.0,0.01315496]
[1739379325131,0.0704,96842.0,96828.0,0.2065612]
[1739379325337,0.0704,96842.0,96830.0,0.28537361]
[1739379325527,0.0704,96842.0,96833.0,0.2065507]
[1739379325731,0.0704,96842.0,96837.0,0.2065421]
[1739379326127,0.88573885,96839.0,96837.0,0.2065421]
[1739379326337,0.88573885,96838.0,96830.0,0.00015496]
[1739379326528,0.3608,96831.0,96830.0,0.00015496]
[1739379326834,1.24653885,96831.0,96830.0,0.00015496]
[1739379327030,1.59987023,96831.0,96830.0,0.00015496]
[1739379327238,1.59987023,96831.0,96790.0,0.28537361]
[1739379327239,1.54653885,96831.0,96801.0,0.2066194]
[1739379327529,0.88573885,96814.0,96790.0,0.28537361]
[1739379327729,0.3598,96814.0,96790.0,0.32537361]
[1739379327938,0.3608,96806.0,96802.0,0.2066172]
[1739379328135,0.88573885,96803.0,96802.0,0.2066172]
[1739379328323,0.88573885,96803.0,96789.0,0.00258635]
[1739379328324,0.88573885,96803.0,96801.0,0.001]
[1739379328529,0.55914033,96802.0,96801.0,0.001]
[1739379328730,1.0915478,96802.0,96794.0,0.00015496]
[1739379328925,0.88573885,96795.0,96791.0,0.2066402]
[1739379329126,0.88573885,96790.0,96755.0,0.3608]
[1739379329329,0.88573885,96763.0,96762.0,0.2067032]
[1739379329930,0.3608,96779.0,96755.0,0.3608]
[1739379330130,0.3608,96792.0,96755.0,0.3608]
[1739379330131,0.88573885,96790.0,96777.0,0.3608]
[1739379330331,0.38960378,96790.0,96787.0,0.2066496]
[1739379330641,0.35333138,96790.0,96787.0,0.2066496]
[1739379330826,0.38860378,96788.0,96787.0,0.2066496]
[1739379331134,0.38860378,96788.0,96780.0,0.28537361]
[1739379331135,0.38860378,96788.0,96779.0,0.00015496]
[1739379331329,0.38860378,96780.0,96779.0,0.00015496]
[1739379331532,0.74940378,96780.0,96779.0,0.00015496]
[1739379331737,1.10273516,96780.0,96779.0,0.00015496]
[1739379332134,0.001,96790.0,96779.0,0.00015496]
[1739379332332,0.35333138,96790.0,96784.0,0.2066562]
[1739379332735,0.38860378,96785.0,96784.0,0.2066562]
[1739379333132,0.74193516,96785.0,96784.0,0.2066562]
[1739379334133,0.0706,96797.0,96796.0,0.2066306]
[1739379334334,0.42393138,96797.0,96796.0,0.2066306]
[1739379334531,0.81253516,96797.0,96796.0,0.2066306]
[1739379334736,0.81253516,96797.0,96779.0,0.00015496]
[1739379334929,0.38860378,96790.0,96788.0,0.2066465]
[1739379335130,0.38860378,96789.0,96788.0,0.2066465]
[1739379335342,0.38860378,96789.0,96784.0,0.003]
[1739379335542,0.38860378,96785.0,96784.0,0.003]
[1739379335937,0.38860378,96785.0,96780.0,0.2066633]
[1739379335938,0.74193516,96785.0,96780.0,0.2066633]
[1739379336129,0.38860378,96780.0,96767.0,1.50052]
[1739379336335,0.38860378,96775.0,96767.0,1.5]
[1739379336530,0.38860378,96768.0,96757.0,0.3608]
[1739379336835,0.3608,96771.0,96760.0,0.2067058]
[1739379337037,0.35333138,96771.0,96760.0,0.28537361]
[1739379337237,0.3608,96773.0,96760.0,0.28537361]
[1739379337542,0.3608,96773.0,96772.0,0.2066818]
[1739379338140,0.38860378,96776.0,96772.0,0.3608]
[1739379338441,0.0706,96797.0,96775.0,0.3608]
[1739379338641,0.0706,96797.0,96796.0,0.3608]
[1739379338838,0.42393138,96797.0,96796.0,0.3608]
[1739379339037,0.81253516,96797.0,96796.0,1.8608]
[1739379339637,0.74193516,96797.0,96787.0,0.00015496]
[1739379339837,0.35333138,96797.0,96792.0,0.3608]
[1739379340041,0.17150356,96795.0,96792.0,0.3608]
[1739379340238,0.17150356,96794.0,96792.0,0.3608]
[1739379340438,0.17150356,96793.0,96792.0,0.3608]
[1739379340747,0.17150356,96793.0,96787.0,0.00015496]
[1739379341047,0.22507622,96793.0,96792.0,0.3638]
[1739379341244,0.22507622,96793.0,96787.0,0.00015496]
[1739379341245,0.05288701,96793.0,96787.0,0.00015496]
[1739379341548,0.05288701,96793.0,96788.0,0.2066476]
[1739379341747,0.05288701,96793.0,96792.0,0.003]
[1739379342246,0.05288701,96793.0,96792.0,0.001]
[1739379342641,0.36095496,96806.0,96792.0,0.001]
[1739379342843,0.05288701,96806.0,96801.0,0.3608]
[1739379343347,0.00060001,96824.0,96812.0,0.2065949]
[1739379343547,0.05288701,96824.0,96822.0,0.3608]
[1739379343745,0.05288701,96824.0,96821.0,0.3608]
[1739379343951,0.05288701,96824.0,96813.0,0.3608]
[1739379344140,0.05304197,96824.0,96813.0,0.3608]
[1739379344337,0.2065754,96822.0,96813.0,0.3608]
[1739379344537,0.2055972,96812.0,96805.0,0.00015496]
[1739379344955,0.05288701,96812.0,96811.0,0.3608]
[1739379345141,0.3608,96812.0,96803.0,0.31287942]
[1739379345446,0.3608,96812.0,96803.0,0.31231942]
[1739379345636,0.64673362,96823.0,96803.0,0.31231942]
[1739379345637,0.3608,96804.0,96803.0,0.31231942]
[1739379346038,0.3608,96822.0,96803.0,0.20461942]
[1739379346247,0.2065882,96816.0,96803.0,0.20461942]
[1739379346451,0.3608,96822.0,96803.0,0.20477438]
[1739379346452,0.3608,96812.0,96803.0,0.20477438]
[1739379346946,0.206604,96809.0,96803.0,0.20477438]
[1739379347550,0.206604,96809.0,96803.0,0.47245727]
[1739379347852,0.3618,96812.0,96803.0,0.47245727]
[1739379348053,0.3608,96804.0,96803.0,0.47245727]
[1739379348547,0.3608,96804.0,96803.0,0.47345727]
[1739379349052,0.3668,96812.0,96803.0,0.47345727]
[1739379350651,0.3608,96812.0,96803.0,0.47245727]
[1739379350846,0.007,96804.0,96803.0,0.47345727]
[1739379351255,0.3608,96815.0,96803.0,0.47245727]
[1739379351452,0.007,96812.0,96803.0,0.47345727]
[1739379351653,0.007,96812.0,96811.0,0.5673985]
[1739379351854,0.00015496,96824.0,96818.0,0.2065831]
[1739379352153,0.3608,96863.0,96823.0,0.3608]
[1739379352346,0.12256,96862.0,96842.0,0.3608]
[1739379353455,0.12271487,96862.0,96842.0,0.36095487]
[1739379353658,0.00015487,96862.0,96842.0,0.36095487]
[1739379354064,0.3608,96855.0,96842.0,0.00115487]
[1739379354752,0.3608,96855.0,96843.0,1.01118191]
[1739379355058,0.00715487,96862.0,96844.0,0.567328]
[1739379355244,0.007,96855.0,96852.0,0.3608]
[1739379355450,0.007,96855.0,96853.0,0.2065089]
[1739379356056,0.007,96855.0,96852.0,0.3608]
[1739379356752,0.12096,96859.0,96853.0,0.2065083]
[1739379356959,0.007,96855.0,96853.0,0.2065083]
[1739379357347,0.00015487,96862.0,96852.0,0.3608]
[1739379357348,0.00015487,96862.0,96860.0,0.2064935]
[1739379357749,0.14428,96870.0,96869.0,0.2064748]
[1739379357960,0.28537361,96940.0,96886.0,0.3608]
[1739379358163,0.28537361,96940.0,96918.0,0.3608]
[1739379358557,0.0515705,96960.0,96926.0,0.3608]
[1739379358558,0.3608,96952.0,96926.0,0.3608]
[1739379358756,0.28537361,96940.0,96916.0,0.3608]
[1739379358957,0.28537361,96940.0,96929.0,0.00015479]
[1739379359149,0.28537361,96940.0,96931.0,0.3608]
[1739379359357,0.2063111,96946.0,96929.0,0.00015479]
[1739379359549,0.0001533,96949.0,96933.0,0.3608]
[1739379359766,0.13067576,96968.0,96948.0,0.3608]
[1739379359961,0.21537276,96980.0,96967.0,0.3608]
[1739379360152,0.0829743,96980.0,96979.0,0.3608]
[1739379360966,0.0829743,96980.0,96979.0,0.7216]
[1739379361463,0.0829743,96980.0,96970.0,0.00015471]
[1739379361662,0.5670576,96971.0,96970.0,0.00015471]
[1739379361963,0.5670576,96971.0,96934.0,0.4306]
[1739379361964,0.3608,96971.0,96944.0,0.3608]
[1739379362167,0.2062844,96959.0,96944.0,0.3608]
[1739379362462,0.28537361,96963.0,96952.0,0.3608]
[1739379362660,0.2063064,96949.0,96934.0,0.3608]
[1739379362861,0.28537361,96944.0,96934.0,0.3608]
[1739379363166,0.28537361,96944.0,96937.0,0.17792455]
[1739379364057,0.00015443,96951.0,96943.0,0.3608]
[1739379364258,0.00015443,96951.0,96943.0,0.7216]
[1739379364563,0.007,96944.0,96943.0,0.7216]
[1739379364761,0.2063278,96938.0,96937.0,0.17892455]
[1739379365161,0.007,96944.0,96937.0,0.17892455]
[1739379365363,0.007,96944.0,96943.0,0.3608]
[1739379365569,0.12424,96945.0,96943.0,0.3618]
[1739379365761,0.00715443,96951.0,96943.0,0.3618]
[1739379366162,0.206307,96948.0,96943.0,0.001]
[1739379366365,0.00715443,96951.0,96943.0,0.001]
[1739379366366,0.3608,96944.0,96943.0,0.001]
[1739379366563,0.2063278,96938.0,96937.0,0.17792455]
[1739379366868,0.30715443,96951.0,96932.0,0.00015471]
[1739379366869,0.36795443,96951.0,96932.0,0.00015471]
[1739379367170,0.007,96938.0,96936.0,0.3608]
[1739379367367,0.12388,96937.0,96932.0,0.00015471]
[1739379367573,0.3608,96933.0,96917.0,0.3608]
[1739379367770,0.007,96938.0,96933.0,0.2063385]
[1739379367965,0.007,96938.0,96936.0,0.2063318]
[1739379368165,0.00015443,96951.0,96932.0,0.3608]
[1739379368360,0.00015443,96951.0,96950.0,0.3608]
[1739379368774,0.00015443,96951.0,96950.0,1.8608]
[1739379369974,0.00015443,96951.0,96950.0,0.3608]
[1739379370474,0.36068405,96956.0,96942.0,0.3608]
[1739379370774,0.36068405,96956.0,96941.0,0.00015471]
[1739379370775,0.2133002,96951.0,96950.0,0.001]
[1739379371079,0.28537361,96952.0,96941.0,0.00015471]
[1739379371270,0.2063071,96948.0,96941.0,0.00015471]
[1739379371462,0.007,96951.0,96941.0,0.00015471]
[1739379371463,0.2063184,96943.0,96941.0,0.00015471]
[1739379371870,0.2053407,96932.0,96929.0,0.3608]
[1739379372281,0.00014806,96951.0,96931.0,0.3608]
[1739379372481,0.00014806,96951.0,96946.0,0.3608]
[1739379372976,0.00014806,96951.0,96929.0,1.50084]
[1739379372977,0.00014806,96951.0,96939.0,0.00015471]
[1739379373167,0.2063087,96947.0,96939.0,0.00015471]
[1739379373375,0.2063236,96940.0,96939.0,0.00015471]
[1739379373676,0.2063236,96940.0,96929.0,0.3616]
[1739379373677,0.2063479,96929.0,96918.0,0.3608]
[1739379373870,0.3608,96933.0,96918.0,0.3608]
[1739379374070,0.3678,96948.0,96918.0,0.3608]
[1739379374071,0.2063476,96929.0,96918.0,0.3608]
[1739379374478,0.3608,96945.0,96918.0,0.3608]
[1739379374780,0.2063524,96927.0,96918.0,0.3608]
[1739379374977,0.2063767,96915.0,96914.0,0.00015471]
[1739379375176,0.5671767,96915.0,96914.0,0.00015471]
[1739379375371,0.2063767,96915.0,96914.0,0.00015471]
[1739379375772,0.5671767,96915.0,96914.0,0.00015471]
[1739379375969,0.2063767,96915.0,96914.0,0.00015471]
[1739379376369,0.28537361,96930.0,96914.0,0.00015471]
[1739379376576,0.3608,96925.0,96914.0,0.00015471]
[1739379376775,0.2063634,96922.0,96914.0,0.00015471]
[1739379377179,0.007,96915.0,96914.0,0.00015471]
[1739379377375,0.007,96915.0,96914.0,0.36095471]
[1739379377685,0.006,96925.0,96914.0,0.36095471]
[1739379377884,0.006,96925.0,96924.0,0.3608]
[1739379378088,0.12704,96925.0,96924.0,0.3608]
[1739379378287,0.00015471,96933.0,96924.0,0.5671576]
[1739379378582,4e-05,96933.0,96932.0,0.3608]
[1739379378885,0.12092,96990.0,96941.0,0.3608]
[1739379379183,0.3608,96979.0,96950.0,0.3608]
[1739379379483,0.2062709,96965.0,96950.0,0.3608]
[1739379379783,0.3608,96979.0,96950.0,0.3608]
[1739379379784,0.2062865,96958.0,96950.0,0.3608]
[1739379380082,0.206299,96952.0,96950.0,0.3608]
[1739379380388,0.00071472,96960.0,96949.0,0.3608]
[1739379380587,0.00015471,96960.0,96950.0,0.001]
[1739379381093,0.00015471,96960.0,96949.0,0.3608]
[1739379381284,0.00714806,96951.0,96950.0,0.001]
[1739379383578,0.00714806,96951.0,96950.0,0.301]
[1739379383774,0.00014806,96951.0,96950.0,0.34]
[1739379383982,0.00015471,96960.0,96950.0,0.34]
[1739379383983,0.00015471,96960.0,96959.0,0.206283]
[1739379384288,0.00015471,96960.0,96959.0,2.087083]
[1739379384590,0.00015471,96960.0,96959.0,0.567083]
[1739379385089,0.00015471,96960.0,96959.0,0.3608]
[1739379385693,0.20643561,96960.0,96951.0,0.3608]
[1739379385873,0.00015471,96960.0,96951.0,0.3608]
[1739379386077,0.00015471,96960.0,96950.0,0.001]
[1739379386281,0.2062979,96952.0,96950.0,0.001]
[1739379386574,0.49780922,96960.0,96959.0,0.001]
[1739379386772,0.59152832,96960.0,96941.0,0.23652152]
[1739379386975,0.0738,96959.0,96941.0,0.23652152]
[1739379387178,0.0738,96959.0,96950.0,0.001]
[1739379387383,0.12,96958.0,96950.0,0.001]
[1739379387580,0.3262871,96958.0,96953.0,0.3608]
[1739379387786,0.0738,96959.0,96953.0,0.3608]
[1739379387987,0.11976,96958.0,96953.0,0.3608]
[1739379388180,0.1196,96957.0,96956.0,0.3608]
[1739379388536,0.00615471,96960.0,96956.0,0.3608]
[1739379388537,0.006,96959.0,96956.0,0.3608]
[1739379390299,0.006,96959.0,96957.0,1.5]
[1739379391001,0.0515308,97025.0,96957.0,1.54]
[1739379391202,0.101,97000.0,96993.0,0.3608]
[1739379391805,0.101,97000.0,96994.0,0.3608]
[1739379392100,0.11972,96999.0,96994.0,0.7216]
[1739379392307,0.006,96998.0,96994.0,0.7216]
[1739379392797,0.006,96998.0,96997.0,0.2061823]
[1739379393112,0.006,96998.0,96997.0,0.2461823]
[1739379393408,0.006,96998.0,96997.0,1.7461823]
[1739379393708,0.101,97000.0,96997.0,1.7461823]
[1739379393910,0.00015471,97007.0,97000.0,0.00361275]
[1739379394213,0.00015471,97007.0,97006.0,0.3608]
[1739379395003,0.00015471,97007.0,97006.0,0.39302719]
[1739379395201,0.00015471,97007.0,97006.0,1.87691398]
[1739379395695,0.206062,97054.0,97010.0,0.00458962]
[1739379395888,0.206062,97054.0,97044.0,0.3608]
[1739379396183,0.28537361,97060.0,97044.0,0.3608]
[1739379396386,0.2060507,97059.0,97044.0,0.3608]
[1739379396583,0.2060507,97059.0,97053.0,0.3608]
[1739379397076,0.2060507,97059.0,97045.0,0.3608]
[1739379397280,0.00056001,97065.0,97058.0,0.3608]
[1739379397476,0.01126225,97075.0,97058.0,0.3608]
[1739379397477,0.2059988,97084.0,97058.0,0.3608]
[1739379397684,0.28537361,97080.0,97068.0,0.3608]
[1739379397885,0.28537361,97080.0,97055.0,0.3608]
[1739379398087,0.0825,97103.0,97055.0,0.3608]
[1739379398088,0.2060378,97065.0,97064.0,0.00015452]
[1739379398491,0.0514921,97098.0,97064.0,0.00015452]
[1739379398492,0.28537361,97080.0,97064.0,0.3608]
[1739379398883,0.28537361,97090.0,97064.0,0.3608]
[1739379399183,0.2060043,97081.0,97077.0,0.3608]
[1739379399780,0.2060086,97079.0,97077.0,0.3608]
[1739379399981,0.2060086,97079.0,97069.0,0.00015452]
[1739379400282,0.2060239,97072.0,97069.0,0.00015452]